[Event "*** SCC Grand Prix: Titled Tuesday Blitz"]
[Site "Chess.com"]
[Date "2020.07.07"]
[Round "10"]
[White "hongnhung1234"]
[Black "mortngabriel"]
[Result "0-1"]
[WhiteElo "2201"]
[BlackElo "2329"]
[TimeControl "180+1"]
[EndTime "11:59:10 PDT"]
[Termination "mortngabriel won on time"]

1. e4 {[%clk 0:03:00.2]} 1... e5 {[%clk 0:03:00.4]} 2. Nf3 {[%clk 0:02:59.7]}
2... Nc6 {[%clk 0:03:01]} 3. d4 {[%clk 0:02:59.8]} 3... exd4 {[%clk 0:03:00.6]}
4. Nxd4 {[%clk 0:03:00.7]} 4... Nf6 {[%clk 0:03:00]} 5. Nc3 {[%clk 0:02:59.4]}
5... Bb4 {[%clk 0:03:00.2]} 6. Nxc6 {[%clk 0:02:59.2]} 6... bxc6 {[%clk
0:03:00.9]} 7. Bd3 {[%clk 0:02:59.6]} 7... d5 {[%clk 0:03:01.2]} 8. exd5 {[%clk
0:03:00.5]} 8... O-O {[%clk 0:03:00.6]} 9. O-O {[%clk 0:03:00.6]} 9... Bg4
{[%clk 0:03:01.3]} 10. f3 {[%clk 0:02:50.1]} 10... Bh5 {[%clk 0:03:01.2]} 11.
Be3 {[%clk 0:02:44.5]} 11... cxd5 {[%clk 0:02:52.7]} 12. Kh1 {[%clk 0:02:36]}
12... c5 {[%clk 0:02:45.3]} 13. Bg5 {[%clk 0:02:27.6]} 13... Bxc3 {[%clk
0:02:39.4]} 14. bxc3 {[%clk 0:02:26.2]} 14... Qd6 {[%clk 0:02:36.2]} 15. c4
{[%clk 0:02:13.4]} 15... d4 {[%clk 0:02:30.2]} 16. Qd2 {[%clk 0:02:10.9]} 16...
Bg6 {[%clk 0:02:21.8]} 17. Bf4 {[%clk 0:02:03.6]} 17... Qa6 {[%clk 0:02:08]} 18.
Rfe1 {[%clk 0:01:56.3]} 18... Rfe8 {[%clk 0:02:06.7]} 19. Be5 {[%clk 0:01:47.7]}
19... Nd7 {[%clk 0:02:04.6]} 20. Bg3 {[%clk 0:01:43.5]} 20... Nb6 {[%clk
0:02:02.5]} 21. Qg5 {[%clk 0:01:37.6]} 21... Rec8 {[%clk 0:01:48.7]} 22. Re7
{[%clk 0:01:16.1]} 22... Nxc4 {[%clk 0:01:40.5]} 23. Qd5 {[%clk 0:01:07.7]}
23... Nb6 {[%clk 0:01:24]} 24. Qxa8 {[%clk 0:00:33.8]} 24... Rxa8 {[%clk
0:01:00.4]} 25. Bxa6 {[%clk 0:00:33]} 25... Bxc2 {[%clk 0:01:00.7]} 26. Rc1
{[%clk 0:00:31.9]} 26... d3 {[%clk 0:01:00.2]} 27. Bf4 {[%clk 0:00:29.7]} 27...
Nd5 {[%clk 0:00:56.5]} 28. Bb7 {[%clk 0:00:28.1]} 28... Nxe7 {[%clk 0:00:23.3]}
29. Bxa8 {[%clk 0:00:27.4]} 29... Ng6 {[%clk 0:00:23.7]} 30. Be3 {[%clk
0:00:26]} 30... c4 {[%clk 0:00:24]} 31. Be4 {[%clk 0:00:19.2]} 31... Ne5 {[%clk
0:00:20.3]} 32. h3 {[%clk 0:00:18.4]} 32... g6 {[%clk 0:00:18.3]} 33. f4 {[%clk
0:00:17.6]} 33... f5 {[%clk 0:00:15.9]} 34. Bd5+ {[%clk 0:00:16.9]} 34... Nf7
{[%clk 0:00:11.2]} 35. Bxc4 {[%clk 0:00:16.9]} 35... Kg7 {[%clk 0:00:11.1]} 36.
Bd4+ {[%clk 0:00:16.4]} 36... Kf8 {[%clk 0:00:11.4]} 37. Bc3 {[%clk 0:00:16.3]}
37... Nd6 {[%clk 0:00:10.5]} 38. Bb3 {[%clk 0:00:15.7]} 38... Bxb3 {[%clk
0:00:07.3]} 39. axb3 {[%clk 0:00:15.5]} 39... Ne4 {[%clk 0:00:08.2]} 40. Bb4+
{[%clk 0:00:15.1]} 40... Kf7 {[%clk 0:00:08.6]} 41. Rd1 {[%clk 0:00:16]} 41...
Nf2+ {[%clk 0:00:07.5]} 42. Kg1 {[%clk 0:00:15.4]} 42... Nxd1 {[%clk 0:00:08.4]}
43. Kf1 {[%clk 0:00:13.1]} 43... Ke6 {[%clk 0:00:07.5]} 44. Ke1 {[%clk
0:00:12.7]} 44... Ne3 {[%clk 0:00:07.7]} 45. g3 {[%clk 0:00:11]} 45... Kd5
{[%clk 0:00:07.7]} 46. Kd2 {[%clk 0:00:10.5]} 46... Ke4 {[%clk 0:00:07.9]} 47.
Bc5 {[%clk 0:00:08.2]} 47... Nf1+ {[%clk 0:00:07.9]} 48. Kd1 {[%clk 0:00:08.4]}
48... a6 {[%clk 0:00:06.2]} 49. Bf2 {[%clk 0:00:06.9]} 49... Kf3 {[%clk
0:00:04.8]} 50. Be1 {[%clk 0:00:06.9]} 50... Nxg3 {[%clk 0:00:04.6]} 51. Kd2
{[%clk 0:00:07.2]} 51... Kxf4 {[%clk 0:00:02]} 52. Kxd3 {[%clk 0:00:06.2]} 52...
Ne4 {[%clk 0:00:02.2]} 53. Kc4 {[%clk 0:00:05.6]} 53... Ke3 {[%clk 0:00:01.9]}
54. Kb4 {[%clk 0:00:04.4]} 54... f4 {[%clk 0:00:01.3]} 55. Ka5 {[%clk
0:00:02.9]} 55... f3 {[%clk 0:00:01]} 0-1

[Event "*** SCC Grand Prix: Titled Tuesday Blitz"]
[Site "Chess.com"]
[Date "2020.07.07"]
[Round "10"]
[White "ErikRonka"]
[Black "Alkhoori90"]
[Result "1-0"]
[WhiteElo "2394"]
[BlackElo "2257"]
[TimeControl "180+1"]
[EndTime "11:59:11 PDT"]
[Termination "ErikRonka won by resignation"]

1. d4 {[%clk 0:03:00.9]} 1... Nf6 {[%clk 0:02:59.8]} 2. Nc3 {[%clk 0:02:58.6]}
2... c5 {[%clk 0:02:59.2]} 3. d5 {[%clk 0:02:57.2]} 3... g6 {[%clk 0:02:59.2]}
4. e4 {[%clk 0:02:55.7]} 4... d6 {[%clk 0:02:59.4]} 5. Nf3 {[%clk 0:02:51.7]}
5... Bg7 {[%clk 0:02:59.4]} 6. Bb5+ {[%clk 0:02:49.3]} 6... Bd7 {[%clk
0:02:59.4]} 7. a4 {[%clk 0:02:49.4]} 7... O-O {[%clk 0:02:58.8]} 8. O-O {[%clk
0:02:49.3]} 8... Bg4 {[%clk 0:02:52.2]} 9. Be2 {[%clk 0:02:42.8]} 9... e6 {[%clk
0:02:45.2]} 10. dxe6 {[%clk 0:02:38.5]} 10... fxe6 {[%clk 0:02:46.1]} 11. e5
{[%clk 0:02:34.8]} 11... dxe5 {[%clk 0:02:34.9]} 12. Qxd8 {[%clk 0:02:33.8]}
12... Rxd8 {[%clk 0:02:35.8]} 13. Nxe5 {[%clk 0:02:34.3]} 13... Bxe2 {[%clk
0:02:33]} 14. Nxe2 {[%clk 0:02:31.7]} 14... Nd5 {[%clk 0:02:21.3]} 15. Nc4
{[%clk 0:02:25.7]} 15... Nc6 {[%clk 0:02:15.2]} 16. c3 {[%clk 0:02:14.9]} 16...
h6 {[%clk 0:02:07.6]} 17. Nf4 {[%clk 0:02:10.3]} 17... Nxf4 {[%clk 0:01:58.6]}
18. Bxf4 {[%clk 0:02:11.2]} 18... Rd7 {[%clk 0:01:40.9]} 19. a5 {[%clk
0:02:07.2]} 19... Rad8 {[%clk 0:01:37]} 20. Be3 {[%clk 0:02:06.3]} 20... Rd5
{[%clk 0:01:34.5]} 21. h3 {[%clk 0:01:53.1]} 21... Ne5 {[%clk 0:01:33.4]} 22.
Nxe5 {[%clk 0:01:48.2]} 22... Rxe5 {[%clk 0:01:32.4]} 23. a6 {[%clk 0:01:28.8]}
23... b6 {[%clk 0:01:29.6]} 24. Rad1 {[%clk 0:01:29.1]} 24... Red5 {[%clk
0:01:28.6]} 25. Rc1 {[%clk 0:01:18.5]} 25... Bf6 {[%clk 0:01:14.4]} 26. f3
{[%clk 0:01:18]} 26... Kg7 {[%clk 0:01:13.2]} 27. Kf2 {[%clk 0:01:18.1]} 27...
Bg5 {[%clk 0:01:00.8]} 28. f4 {[%clk 0:01:03.3]} 28... Bf6 {[%clk 0:00:58.6]}
29. Ke2 {[%clk 0:01:01.1]} 29... e5 {[%clk 0:00:45.5]} 30. f5 {[%clk 0:00:57.9]}
30... g5 {[%clk 0:00:43.7]} 31. Kf3 {[%clk 0:00:58.2]} 31... Rd3 {[%clk
0:00:41.6]} 32. Ke4 {[%clk 0:00:56.6]} 32... Kf7 {[%clk 0:00:36.7]} 33. g4
{[%clk 0:00:49.9]} 33... Ke7 {[%clk 0:00:34.3]} 34. Rh1 {[%clk 0:00:49]} 34...
R8d7 {[%clk 0:00:30.4]} 35. h4 {[%clk 0:00:47.9]} 35... gxh4 {[%clk 0:00:11.4]}
36. Bxh6 {[%clk 0:00:48.8]} 36... Rg3 {[%clk 0:00:10.2]} 37. Rcg1 {[%clk
0:00:43.6]} 37... Rdd3 {[%clk 0:00:10.4]} 38. Rxg3 {[%clk 0:00:28.1]} 38... Rxg3
{[%clk 0:00:11.3]} 39. g5 {[%clk 0:00:29]} 39... Bxg5 {[%clk 0:00:11.1]} 40.
Bxg5+ {[%clk 0:00:29.9]} 40... Rxg5 {[%clk 0:00:12]} 41. Kxe5 {[%clk 0:00:30.7]}
41... Rh5 {[%clk 0:00:11.6]} 42. b4 {[%clk 0:00:25.3]} 42... cxb4 {[%clk
0:00:11.1]} 43. cxb4 {[%clk 0:00:26.2]} 43... h3 {[%clk 0:00:11.9]} 44. Rh2
{[%clk 0:00:16.5]} 44... Rh4 {[%clk 0:00:09]} 45. b5 {[%clk 0:00:15.6]} 45...
Rh5 {[%clk 0:00:09.1]} 46. Ke4 {[%clk 0:00:13.7]} 46... Kf6 {[%clk 0:00:09.2]}
47. Kd5 {[%clk 0:00:10.7]} 47... Rxf5+ {[%clk 0:00:09.1]} 48. Kc6 {[%clk
0:00:11.6]} 48... Rc5+ {[%clk 0:00:08.6]} 49. Kb7 {[%clk 0:00:11.5]} 49... Rxb5
{[%clk 0:00:09.2]} 50. Rxh3 {[%clk 0:00:11.5]} 50... Ra5 {[%clk 0:00:06.9]} 51.
Kxa7 {[%clk 0:00:11.9]} 51... b5 {[%clk 0:00:07.5]} 52. Kb6 {[%clk 0:00:12.2]}
52... Ra2 {[%clk 0:00:07.1]} 53. a7 {[%clk 0:00:12.4]} 53... Ke6 {[%clk
0:00:07]} 54. Kb7 {[%clk 0:00:12.5]} 54... Kd7 {[%clk 0:00:07.2]} 55. a8=Q
{[%clk 0:00:12.1]} 55... Rxa8 {[%clk 0:00:07]} 56. Kxa8 {[%clk 0:00:13]} 56...
Kc6 {[%clk 0:00:07.9]} 57. Ka7 {[%clk 0:00:13.2]} 57... b4 {[%clk 0:00:08.3]}
58. Ka6 {[%clk 0:00:13.4]} 58... Kc5 {[%clk 0:00:08.9]} 59. Ka5 {[%clk
0:00:13.8]} 59... b3 {[%clk 0:00:08.9]} 60. Rxb3 {[%clk 0:00:13]} 1-0

[Event "*** SCC Grand Prix: Titled Tuesday Blitz"]
[Site "Chess.com"]
[Date "2020.07.07"]
[Round "10"]
[White "maximnovik"]
[Black "Forantes"]
[Result "1-0"]
[WhiteElo "2510"]
[BlackElo "2364"]
[TimeControl "180+1"]
[EndTime "11:59:13 PDT"]
[Termination "maximnovik won by resignation"]

1. d4 {[%clk 0:03:00.9]} 1... Nf6 {[%clk 0:02:59.1]} 2. Bg5 {[%clk 0:03:00.3]}
2... d5 {[%clk 0:02:57.2]} 3. Bxf6 {[%clk 0:02:59.9]} 3... exf6 {[%clk
0:02:58.1]} 4. e3 {[%clk 0:03:00.2]} 4... Bd6 {[%clk 0:02:57.3]} 5. Bd3 {[%clk
0:02:58.3]} 5... O-O {[%clk 0:02:56.2]} 6. Qf3 {[%clk 0:02:57.9]} 6... c6 {[%clk
0:02:48.8]} 7. Nd2 {[%clk 0:02:57.4]} 7... Re8 {[%clk 0:02:40]} 8. Ne2 {[%clk
0:02:57.3]} 8... b5 {[%clk 0:02:28.6]} 9. g4 {[%clk 0:02:56.4]} 9... Qd7 {[%clk
0:02:21.5]} 10. Bf5 {[%clk 0:02:48.1]} 10... Qc7 {[%clk 0:02:21.6]} 11. Bxc8
{[%clk 0:02:42.5]} 11... Qxc8 {[%clk 0:02:21.6]} 12. h4 {[%clk 0:02:42.5]} 12...
Na6 {[%clk 0:02:09.4]} 13. O-O-O {[%clk 0:02:38.2]} 13... b4 {[%clk 0:01:59.9]}
14. Kb1 {[%clk 0:02:36.6]} 14... Nc7 {[%clk 0:01:59.8]} 15. Rdg1 {[%clk
0:02:32.8]} 15... a5 {[%clk 0:01:54.7]} 16. g5 {[%clk 0:02:32.6]} 16... f5
{[%clk 0:01:54.8]} 17. h5 {[%clk 0:02:32.1]} 17... a4 {[%clk 0:01:39.4]} 18. g6
{[%clk 0:02:31.2]} 18... fxg6 {[%clk 0:01:38.5]} 19. hxg6 {[%clk 0:02:31.3]}
19... h6 {[%clk 0:01:39.1]} 20. Rh5 {[%clk 0:02:28.6]} 20... Rf8 {[%clk
0:01:39.1]} 21. Nf4 {[%clk 0:02:03.8]} 21... Ne6 {[%clk 0:01:35.8]} 22. Nd3
{[%clk 0:01:37.7]} 22... f4 {[%clk 0:01:08.3]} 23. Qh3 {[%clk 0:01:29.3]} 23...
Ng5 {[%clk 0:00:34.8]} 24. Qh1 {[%clk 0:01:28.9]} 24... Rf5 {[%clk 0:00:10]} 25.
Rgxg5 {[%clk 0:01:15]} 25... Rxg5 {[%clk 0:00:10.9]} 26. Rxg5 {[%clk 0:01:14.6]}
26... hxg5 {[%clk 0:00:11.8]} 27. Qh7+ {[%clk 0:01:15]} 27... Kf8 {[%clk
0:00:12.5]} 28. Qh8+ {[%clk 0:01:15.3]} 28... Ke7 {[%clk 0:00:13.1]} 29. Qxg7+
{[%clk 0:01:15.2]} 29... Kd8 {[%clk 0:00:12.9]} 30. e4 {[%clk 0:00:46.4]} 30...
Qd7 {[%clk 0:00:12]} 31. Qh6 {[%clk 0:00:41.2]} 31... Kc7 {[%clk 0:00:09.7]} 32.
e5 {[%clk 0:00:39.2]} 32... Be7 {[%clk 0:00:10]} 33. g7 {[%clk 0:00:38.1]} 33...
Rg8 {[%clk 0:00:10.4]} 34. Qg6 {[%clk 0:00:33.5]} 34... Bd8 {[%clk 0:00:08.5]}
35. Nc5 {[%clk 0:00:32.1]} 35... Qe7 {[%clk 0:00:06.6]} 36. Nf3 {[%clk
0:00:27.4]} 36... Kc8 {[%clk 0:00:06.2]} 37. Qf5+ {[%clk 0:00:25.3]} 37... Kb8
{[%clk 0:00:06.2]} 38. Ne6 {[%clk 0:00:24.6]} 38... Re8 {[%clk 0:00:06.1]} 39.
Nfxg5 {[%clk 0:00:23.1]} 39... Rg8 {[%clk 0:00:04.9]} 40. Nf3 {[%clk 0:00:19.1]}
40... Rxg7 {[%clk 0:00:04.8]} 41. Nxg7 {[%clk 0:00:18.5]} 41... Qxg7 {[%clk
0:00:05.7]} 42. Qxf4 {[%clk 0:00:17.9]} 42... Kb7 {[%clk 0:00:05.2]} 43. a3
{[%clk 0:00:17.4]} 43... b3 {[%clk 0:00:04.7]} 44. cxb3 {[%clk 0:00:17.5]} 44...
axb3 {[%clk 0:00:05.1]} 45. Qe3 {[%clk 0:00:16.6]} 45... Qh7+ {[%clk 0:00:05.6]}
46. Ka1 {[%clk 0:00:14.7]} 46... Qc2 {[%clk 0:00:03.1]} 47. Nd2 {[%clk
0:00:13.3]} 47... Bg5 {[%clk 0:00:01.5]} 48. Qxb3+ {[%clk 0:00:12.6]} 48... Qxb3
{[%clk 0:00:01.8]} 49. Nxb3 {[%clk 0:00:12.8]} 49... Kc7 {[%clk 0:00:02.5]} 50.
Kb1 {[%clk 0:00:12.5]} 50... Kd7 {[%clk 0:00:02.9]} 51. Kc2 {[%clk 0:00:13]}
51... Ke6 {[%clk 0:00:03.4]} 52. Kd3 {[%clk 0:00:13.4]} 52... Kf5 {[%clk
0:00:03.9]} 53. Nc5 {[%clk 0:00:13.7]} 53... Bc1 {[%clk 0:00:04.4]} 54. a4
{[%clk 0:00:13.2]} 54... Bxb2 {[%clk 0:00:04.7]} 55. a5 {[%clk 0:00:13.7]} 55...
Ba3 {[%clk 0:00:05.1]} 56. a6 {[%clk 0:00:13.8]} 56... Bxc5 {[%clk 0:00:05.3]}
57. dxc5 {[%clk 0:00:14]} 57... Kxe5 {[%clk 0:00:06.2]} 1-0

[Event "*** SCC Grand Prix: Titled Tuesday Blitz"]
[Site "Chess.com"]
[Date "2020.07.07"]
[Round "10"]
[White "m-garcett"]
[Black "The_Machine04"]
[Result "0-1"]
[WhiteElo "2060"]
[BlackElo "2254"]
[TimeControl "180+1"]
[EndTime "11:59:13 PDT"]
[Termination "The_Machine04 won by resignation"]

1. e4 {[%clk 0:03:00.9]} 1... d6 {[%clk 0:02:55.8]} 2. d4 {[%clk 0:03:00.2]}
2... Nf6 {[%clk 0:02:51.6]} 3. Nc3 {[%clk 0:03:00.4]} 3... e5 {[%clk 0:02:42.3]}
4. Nf3 {[%clk 0:02:47.8]} 4... Nbd7 {[%clk 0:02:35.6]} 5. Bc4 {[%clk 0:02:45.9]}
5... Be7 {[%clk 0:02:33.9]} 6. Be3 {[%clk 0:02:44.2]} 6... c6 {[%clk 0:02:26.7]}
7. h3 {[%clk 0:02:44]} 7... h6 {[%clk 0:02:24.6]} 8. Qd2 {[%clk 0:02:41.8]} 8...
Qc7 {[%clk 0:02:19.8]} 9. Bb3 {[%clk 0:02:38.6]} 9... a5 {[%clk 0:02:18.6]} 10.
a3 {[%clk 0:02:38]} 10... Nf8 {[%clk 0:02:14.1]} 11. O-O {[%clk 0:02:26.9]}
11... Be6 {[%clk 0:02:03.6]} 12. d5 {[%clk 0:02:23.9]} 12... Bd7 {[%clk
0:01:59.2]} 13. Rad1 {[%clk 0:02:16.5]} 13... c5 {[%clk 0:01:53.1]} 14. Bc4
{[%clk 0:02:04.2]} 14... g5 {[%clk 0:01:47.1]} 15. Bb5 {[%clk 0:01:45]} 15...
Ng6 {[%clk 0:01:44.5]} 16. Bxd7+ {[%clk 0:01:43.2]} 16... Qxd7 {[%clk
0:01:45.4]} 17. Nh2 {[%clk 0:01:33.3]} 17... Nf4 {[%clk 0:01:43.1]} 18. Bxf4
{[%clk 0:01:32]} 18... gxf4 {[%clk 0:01:38.4]} 19. Qe2 {[%clk 0:01:31.1]} 19...
Rg8 {[%clk 0:01:30.4]} 20. f3 {[%clk 0:01:28.5]} 20... Nh5 {[%clk 0:01:19.6]}
21. Qb5 {[%clk 0:01:27.3]} 21... Qxb5 {[%clk 0:01:17.4]} 22. Nxb5 {[%clk
0:01:26.7]} 22... Kd7 {[%clk 0:01:11.8]} 23. c3 {[%clk 0:01:17.1]} 23... Ng3
{[%clk 0:01:08.1]} 24. Rf2 {[%clk 0:01:14.9]} 24... a4 {[%clk 0:01:00.7]} 25.
Rc2 {[%clk 0:01:12.9]} 25... Ra6 {[%clk 0:00:53.5]} 26. Rd3 {[%clk 0:00:54.5]}
26... Rga8 {[%clk 0:00:43.8]} 27. c4 {[%clk 0:00:54.6]} 27... Ra5 {[%clk
0:00:42]} 28. b3 {[%clk 0:00:53.6]} 28... axb3 {[%clk 0:00:35.7]} 29. Rxb3
{[%clk 0:00:54.5]} 29... b6 {[%clk 0:00:35.9]} 30. Ng4 {[%clk 0:00:52.7]} 30...
h5 {[%clk 0:00:32.9]} 31. Nf2 {[%clk 0:00:34.8]} 31... Bd8 {[%clk 0:00:28.4]}
32. Nd3 {[%clk 0:00:32.7]} 32... h4 {[%clk 0:00:19.9]} 33. Ra2 {[%clk 0:00:29]}
33... f5 {[%clk 0:00:18.9]} 34. Nc3 {[%clk 0:00:27]} 34... fxe4 {[%clk
0:00:16.7]} 35. Nxe4 {[%clk 0:00:27.7]} 35... Nxe4 {[%clk 0:00:16.3]} 36. fxe4
{[%clk 0:00:28.6]} 36... Rb8 {[%clk 0:00:14.5]} 37. Ne1 {[%clk 0:00:27.9]} 37...
b5 {[%clk 0:00:13.8]} 38. Rab2 {[%clk 0:00:21]} 38... Rba8 {[%clk 0:00:07.3]}
39. cxb5 {[%clk 0:00:19.1]} 39... Rxa3 {[%clk 0:00:06.5]} 40. Rxa3 {[%clk
0:00:15.9]} 40... Rxa3 {[%clk 0:00:07.4]} 41. Nf3 {[%clk 0:00:15.9]} 41... Bb6
{[%clk 0:00:03.5]} 42. Nxh4 {[%clk 0:00:14.8]} 42... Re3 {[%clk 0:00:03.4]} 43.
Kh2 {[%clk 0:00:10.1]} 43... Rxe4 {[%clk 0:00:03.4]} 44. Nf5 {[%clk 0:00:09.4]}
44... Rb4 {[%clk 0:00:01.4]} 45. Ra2 {[%clk 0:00:08.8]} 45... Rxb5 {[%clk
0:00:01.6]} 46. Ra8 {[%clk 0:00:08.4]} 46... c4 {[%clk 0:00:01.7]} 47. Rg8
{[%clk 0:00:07.4]} 47... Rxd5 {[%clk 0:00:01.7]} 48. Rg7+ {[%clk 0:00:08.3]}
48... Ke6 {[%clk 0:00:01.5]} 49. Nh6 {[%clk 0:00:06.5]} 49... c3 {[%clk
0:00:01.5]} 50. Rg6+ {[%clk 0:00:06.5]} 50... Kd7 {[%clk 0:00:01.9]} 51. Rg7+
{[%clk 0:00:06.1]} 51... Kc6 {[%clk 0:00:02.5]} 52. Nf5 {[%clk 0:00:05.6]} 52...
c2 {[%clk 0:00:03.1]} 53. Rg8 {[%clk 0:00:05.4]} 53... Bc7 {[%clk 0:00:02.9]}
54. Rc8 {[%clk 0:00:05.6]} 54... c1=Q {[%clk 0:00:02.3]} 55. Ne7+ {[%clk
0:00:06.5]} 55... Kd7 {[%clk 0:00:02.9]} 56. Nxd5 {[%clk 0:00:06.7]} 56... Kxc8
{[%clk 0:00:03]} 57. Nxc7 {[%clk 0:00:05.2]} 57... Kxc7 {[%clk 0:00:03.3]} 0-1

[Event "*** SCC Grand Prix: Titled Tuesday Blitz"]
[Site "Chess.com"]
[Date "2020.07.07"]
[Round "10"]
[White "snap_man"]
[Black "Sychev_Klementy"]
[Result "0-1"]
[WhiteElo "2319"]
[BlackElo "2766"]
[TimeControl "180+1"]
[EndTime "11:59:16 PDT"]
[Termination "Sychev_Klementy won by resignation"]

1. Nf3 {[%clk 0:03:00.9]} 1... Nf6 {[%clk 0:02:59.8]} 2. g3 {[%clk 0:03:01.1]}
2... d5 {[%clk 0:02:59.5]} 3. Bg2 {[%clk 0:03:01.1]} 3... c6 {[%clk 0:02:58]} 4.
O-O {[%clk 0:03:01.3]} 4... Bg4 {[%clk 0:02:58.2]} 5. b3 {[%clk 0:03:00.7]} 5...
Nbd7 {[%clk 0:02:57.5]} 6. Bb2 {[%clk 0:03:01]} 6... e6 {[%clk 0:02:57.9]} 7. d3
{[%clk 0:03:01.1]} 7... Be7 {[%clk 0:02:55.9]} 8. Nbd2 {[%clk 0:03:00.8]} 8...
O-O {[%clk 0:02:56.2]} 9. c4 {[%clk 0:02:58.1]} 9... a5 {[%clk 0:02:55.3]} 10.
cxd5 {[%clk 0:02:45.7]} 10... exd5 {[%clk 0:02:47.3]} 11. Qc2 {[%clk 0:02:34.9]}
11... a4 {[%clk 0:02:38.6]} 12. e4 {[%clk 0:02:17.2]} 12... h6 {[%clk
0:01:51.6]} 13. Rfe1 {[%clk 0:01:55.3]} 13... Re8 {[%clk 0:01:40.1]} 14. h3
{[%clk 0:01:38.8]} 14... Bh5 {[%clk 0:01:26.9]} 15. e5 {[%clk 0:01:37.6]} 15...
Nh7 {[%clk 0:01:25.4]} 16. e6 {[%clk 0:01:32.6]} 16... fxe6 {[%clk 0:01:21.6]}
17. Rxe6 {[%clk 0:01:32.5]} 17... axb3 {[%clk 0:01:06]} 18. axb3 {[%clk
0:01:26.6]} 18... Rxa1+ {[%clk 0:01:02.5]} 19. Bxa1 {[%clk 0:01:27.5]} 19...
Nhf6 {[%clk 0:00:50.6]} 20. Nh4 {[%clk 0:01:07.8]} 20... Bf7 {[%clk 0:00:49.5]}
21. Re1 {[%clk 0:01:06.3]} 21... Bb4 {[%clk 0:00:46.9]} 22. Rxe8+ {[%clk
0:00:59.3]} 22... Qxe8 {[%clk 0:00:47.5]} 23. Ndf3 {[%clk 0:00:54.5]} 23... Qe6
{[%clk 0:00:36.1]} 24. g4 {[%clk 0:00:50.7]} 24... Nf8 {[%clk 0:00:21.1]} 25.
Ne5 {[%clk 0:00:39.8]} 25... Bd6 {[%clk 0:00:19.1]} 26. Nxf7 {[%clk 0:00:37]}
26... Kxf7 {[%clk 0:00:18.3]} 27. Bc3 {[%clk 0:00:32.6]} 27... N8d7 {[%clk
0:00:17.1]} 28. Nf5 {[%clk 0:00:31.8]} 28... Bc5 {[%clk 0:00:16.3]} 29. b4
{[%clk 0:00:25.2]} 29... Bf8 {[%clk 0:00:16]} 30. Qd2 {[%clk 0:00:14.6]} 30...
g6 {[%clk 0:00:14.6]} 31. Nxh6+ {[%clk 0:00:13.7]} 31... Ke8 {[%clk 0:00:13.5]}
32. g5 {[%clk 0:00:12.1]} 32... Nh5 {[%clk 0:00:13]} 33. Ng4 {[%clk 0:00:11.5]}
33... Bd6 {[%clk 0:00:12.5]} 34. Qe1 {[%clk 0:00:05.4]} 34... Qxe1+ {[%clk
0:00:11.3]} 35. Bxe1 {[%clk 0:00:06.3]} 35... Nf4 {[%clk 0:00:11.8]} 36. Bf1
{[%clk 0:00:05.7]} 36... Kf7 {[%clk 0:00:12.1]} 37. h4 {[%clk 0:00:05.1]} 37...
Ne5 {[%clk 0:00:11.6]} 38. Bd2 {[%clk 0:00:04.3]} 38... Nf3+ {[%clk 0:00:11.3]}
39. Kh1 {[%clk 0:00:03.7]} 39... Nxd2 {[%clk 0:00:11.6]} 40. Nh6+ {[%clk
0:00:04]} 40... Kg7 {[%clk 0:00:11.2]} 41. Bg2 {[%clk 0:00:03.8]} 41... Nxg2
{[%clk 0:00:11]} 42. Kxg2 {[%clk 0:00:04.7]} 42... Bxb4 {[%clk 0:00:11.6]} 43.
Ng4 {[%clk 0:00:04.6]} 43... Bc3 {[%clk 0:00:12]} 44. f4 {[%clk 0:00:04.2]}
44... b5 {[%clk 0:00:12.2]} 45. f5 {[%clk 0:00:04]} 45... gxf5 {[%clk 0:00:12]}
46. Ne3 {[%clk 0:00:04.7]} 46... Kg6 {[%clk 0:00:12.3]} 47. Kg3 {[%clk
0:00:04.8]} 47... b4 {[%clk 0:00:12.8]} 48. Kf4 {[%clk 0:00:05.2]} 48... b3
{[%clk 0:00:13.1]} 49. Nxf5 {[%clk 0:00:05.7]} 49... b2 {[%clk 0:00:13.2]} 50.
Ng3 {[%clk 0:00:06]} 50... b1=Q {[%clk 0:00:12.9]} 51. h5+ {[%clk 0:00:06.4]}
51... Kf7 {[%clk 0:00:12.6]} 0-1